bitfinex-derivatives/quotes_SOLF0:USTF0_20250111
["timestamp","ask_amount","ask_price","bid_price","bid_amount"]
[1736570940874,2.6909,185.84,185.79,16.7044664]
[1736570941269,2.6903,185.88,185.8,2.6913]
[1736570941476,11.2644664,185.91,185.79,16.7044664]
[1736570941773,2.6905,185.87,185.81,2.6912]
[1736570943270,2.6905,185.87,185.82,13.9554664]
[1736570943872,4.7304,185.92,185.82,11.2644664]
[1736570944079,2.6907,185.85,185.8,7.4701]
[1736570944270,5.401,185.9,185.8,4.7787]
[1736570944572,2.6906,185.86,185.81,2.6912]
[1736570945474,11.2644664,185.91,185.79,11.2644664]
[1736570945668,27.4544664,185.91,185.79,11.2644664]
[1736570946066,27.4544664,185.88,185.76,11.2644664]
[1736570946266,5.401,185.87,185.76,11.2644664]
[1736570946774,16.19,185.87,185.76,13.9564664]
[1736570947368,5.401,185.86,185.76,13.9564664]
[1736570947677,2.6913,185.82,185.76,13.9564664]
[1736570948277,16.19,185.86,185.76,11.2644664]
[1736570948478,32.3629664,185.85,185.73,11.2644664]
[1736570948872,11.2644664,185.82,185.72,5.44]
[1736570949374,5.401,185.81,185.72,5.44]
[1736570949678,2.692,185.76,185.72,5.44]
[1736570950875,27.4544664,185.82,185.72,5.44]
[1736570950876,2.6916,185.79,185.72,5.44]
[1736570951072,2.6916,185.79,185.73,2.6924]
[1736570951376,2.6916,185.79,185.72,5.44]
[1736570951879,2.6916,185.79,185.73,11.2644664]
[1736570952073,2.6916,185.79,185.74,2.6923]
[1736570953179,2.6916,185.79,185.73,11.2644664]
[1736570953381,2.6916,185.79,185.73,13.9568664]
[1736570955277,32.3629664,185.85,185.74,7.21509217]
[1736570955278,2.6919,185.77,185.74,7.21509217]
[1736570955478,7.21509217,185.79,185.74,7.21509217]
[1736570956282,7.21509217,185.81,185.74,7.21509217]
[1736570957082,2.6917,185.79,185.74,7.21509217]
[1736570957581,7.21509217,185.81,185.74,7.21509217]
[1736570958181,2.6916,185.79,185.74,7.21509217]
[1736570958585,7.21509217,185.81,185.74,7.21509217]
[1736570958786,2.6917,185.78,185.74,7.21509217]
[1736570959877,2.6915,185.8,185.76,7.21509217]
[1736570966484,2.6915,185.8,185.78,7.21509217]
[1736570967492,17.52459217,185.85,185.78,7.21509217]
[1736570967691,2.6913,185.82,185.78,7.21509217]
[1736570967891,17.52459217,185.85,185.78,7.21509217]
[1736570968091,2.691,185.83,185.78,7.21509217]
[1736570968393,5.401,185.86,185.82,7.21509217]
[1736570968892,2.6907,185.85,185.82,7.21509217]
[1736570969091,8.0917,185.85,185.82,7.21509217]
[1736570969592,2.6909,185.84,185.82,7.21509217]
[1736570969993,5.401,185.87,185.82,7.21509217]
[1736570970989,8.0917,185.86,185.82,7.21509217]
[1736570971193,5.401,185.86,185.82,7.21509217]
[1736570971393,5.401,185.86,185.82,9.90619217]
[1736570971796,5.401,185.86,185.84,7.21509217]
[1736570973094,5.401,185.89,185.85,2.6907]
[1736570973288,5.401,185.89,185.88,7.21509217]
[1736570974394,5.401,185.9,185.88,7.21509217]
[1736570975791,5.401,185.96,185.88,7.21509217]
[1736570976095,2.6896,185.93,185.9,7.21509217]
[1736570977694,2.6894,185.94,185.9,7.21509217]
[1736570979799,2.6898,185.92,185.9,7.21509217]
[1736570979998,7.21509217,185.95,185.88,12.63509217]
[1736570980499,2.6897,185.92,185.88,12.63509217]
[1736570983902,7.21509217,185.93,185.88,12.63509217]
[1736570984099,7.21509217,185.93,185.88,7.21509217]
[1736570985304,2.69,185.91,185.88,7.21509217]
[1736570989709,2.6897,185.92,185.88,7.21509217]
[1736570990308,2.6896,185.93,185.9,7.21509217]
[1736570996905,2.6896,185.93,185.88,2.6902]
[1736570997113,2.6896,185.93,185.9,7.21509217]
[1736570997708,2.6893,185.95,185.92,7.21509217]
[1736570998312,7.6049417,185.97,185.92,7.21509217]
[1736570998512,2.6889,185.98,185.94,7.21509217]
[1736571002612,2.6885,186.01,185.94,9.90449217]
[1736571002813,7.21509217,186.02,185.96,7.21509217]
[1736571004018,7.21509217,186.0,185.94,7.21509217]
[1736571004516,2.6891,185.97,185.94,7.21509217]
[1736571006820,7.21509217,186.0,185.94,7.21509217]
[1736571007017,2.6891,185.96,185.94,7.21509217]
[1736571010817,2.6895,185.94,185.81,4.8445]
[1736571011017,7.21509217,185.96,185.82,5.4]
[1736571011213,7.21509217,185.94,185.82,5.4]
[1736571011420,2.6898,185.92,185.88,7.21509217]
[1736571012418,7.21509217,185.94,185.88,7.21509217]
[1736571012615,7.21509217,185.94,185.81,4.8445]
[1736571012819,7.21509217,185.92,185.86,7.21509217]
[1736571013126,2.6901,185.89,185.86,7.21509217]
[1736571014921,2.6899,185.91,185.88,7.21509217]
[1736571015126,7.21509217,185.94,185.88,7.21509217]
[1736571015526,2.6897,185.92,185.88,7.21509217]
[1736571015727,2.6897,185.92,185.9,7.21509217]
[1736571016026,6.99935362,185.96,185.9,7.21509217]
[1736571016426,7.21509217,185.97,185.9,7.21509217]
[1736571016829,2.6895,185.94,185.9,7.21509217]
[1736571017021,7.21509217,185.95,185.88,7.21509217]
[1736571017221,2.6898,185.91,185.88,7.21509217]
[1736571018427,2.6896,185.93,185.88,7.21509217]
[1736571018732,7.21509217,185.95,185.88,7.21509217]
[1736571019125,7.21509217,185.93,185.88,7.21509217]
[1736571020126,2.69,185.9,185.88,7.21509217]
[1736571022327,6.99935362,185.95,185.88,7.21509217]
[1736571022528,6.99935362,185.95,185.94,7.21509217]
[1736571022935,171.64433406,185.96,185.94,7.21509217]
[1736571023324,1.6087,185.99,185.94,7.21509217]
[1736571023524,8.82379217,185.99,185.94,7.21509217]
[1736571023728,2.6889,185.98,185.94,7.21509217]
[1736571024028,8.82379217,185.99,185.94,7.21509217]
[1736571024328,7.21509217,185.97,185.92,7.21509217]
[1736571024733,7.21509217,185.97,185.86,5.42]
[1736571024934,7.21509217,185.95,185.89,7.21509217]
[1736571026236,2.6895,185.93,185.89,7.21509217]
[1736571026429,7.21509217,185.95,185.89,7.21509217]
[1736571026625,2.6897,185.92,185.89,7.21509217]
[1736571029329,7.21509217,185.95,185.89,7.21509217]
[1736571029330,2.6896,185.93,185.89,7.21509217]
[1736571029534,7.21509217,185.97,185.89,7.21509217]
[1736571029734,7.21509217,185.97,185.91,7.21509217]
[1736571030432,2.6893,185.95,185.91,7.21509217]
[1736571030638,14.22741649,185.99,185.93,7.21509217]
[1736571031135,7.21509217,185.99,185.93,7.21509217]
[1736571031830,3.2295,186.0,185.93,7.21509217]
[1736571032036,2.6888,185.98,185.93,9.90459217]
[1736571032236,7.01528512,186.01,185.95,7.21509217]
[1736571032437,14.23037729,186.01,185.95,7.21509217]
[1736571032829,2.6885,186.0,185.95,7.21509217]
[1736571034138,2.6885,186.0,185.95,9.90429217]
[1736571034334,7.21509217,186.01,185.95,9.90429217]
[1736571034542,7.21509217,186.01,185.95,7.21509217]
[1736571034835,7.21509217,186.01,185.93,7.21509217]
[1736571035435,23.36509217,186.01,185.93,7.21509217]
[1736571035641,2.6891,185.97,185.93,7.21509217]
[1736571041443,7.21509217,185.99,185.93,7.21509217]
[1736571041645,2.6891,185.96,185.93,7.21509217]
[1736571044949,14.22116272,186.01,185.93,7.21509217]
[1736571045143,2.6889,185.98,185.95,7.21509217]
[1736571052254,2.689,185.97,185.95,7.21509217]
[1736571055657,2.6888,185.98,185.95,7.21509217]
[1736571055957,7.21509217,186.01,185.95,9.90429217]
[1736571056250,65.07318608,186.04,185.97,7.21509217]
[1736571056455,7.21509217,186.03,185.97,9.90399217]
[1736571057256,2.6884,186.02,185.97,9.90399217]
[1736571057458,2.6884,186.02,185.99,7.21509217]
[1736571057663,64.51448608,186.04,185.99,7.21509217]
[1736571058158,64.51448608,186.04,185.99,9.90379217]
[1736571059348,2.6881,186.03,185.99,9.90379217]
[1736571060860,2.688,186.04,186.01,7.21509217]
[1736571062861,2.6878,186.06,186.02,2.6882]
[1736571063263,7.00435782,186.09,186.03,7.21509217]
[1736571063562,2.6875,186.07,186.03,7.21509217]
[1736571063859,151.92100143,186.1,186.05,7.21509217]
[1736571064060,2.6872,186.1,186.05,7.21509217]
[1736571064964,2.6872,186.1,186.05,9.90289217]
[1736571065666,7.21509217,186.1,185.95,4.8545]
[1736571065961,7.21509217,186.08,186.02,7.21509217]
[1736571066163,2.6879,186.04,186.02,7.21509217]
[1736571068658,2.6876,186.07,186.02,7.21509217]
[1736571069461,2.6876,186.07,186.04,7.21509217]
[1736571072568,7.21509217,186.1,186.04,7.21509217]
[1736571072770,2.6874,186.08,186.04,7.21509217]
[1736571072965,2.6874,186.08,186.06,7.21509217]
[1736571076768,2.6875,186.07,186.06,7.21509217]
[1736571077571,2.6875,186.07,186.04,7.21509217]
[1736571077768,2.6878,186.05,185.95,4.8545]
[1736571078072,7.21509217,186.1,186.02,7.21509217]
[1736571078275,2.6877,186.07,186.04,7.21509217]
[1736571078465,103.3702,186.13,186.04,7.21509217]
[1736571078466,7.21509217,186.1,186.04,7.21509217]
[1736571078876,2.6878,186.06,186.04,7.21509217]
[1736571079371,2.6878,186.06,186.0,7.21509217]
[1736571079372,7.21509217,186.06,186.0,7.21509217]
[1736571079570,2.6881,186.03,186.0,7.21509217]
[1736571079966,7.21509217,186.06,186.0,7.21509217]
[1736571080275,7.21509217,186.04,185.98,7.21509217]
[1736571081173,2.6884,186.01,185.98,7.21509217]
[1736571081374,7.21509217,186.04,185.95,4.8545]
[1736571081573,7.21509217,186.04,185.97,7.21509217]
[1736571082073,2.6887,186.0,185.97,7.21509217]
[1736571082266,7.21509217,186.04,185.97,7.21509217]
[1736571082467,7.21509217,186.02,185.97,7.21509217]
[1736571082673,2.6887,185.99,185.97,7.21509217]
[1736571083269,2.689,185.97,185.92,2.6896]
[1736571083576,2.689,185.97,185.95,7.21509217]
[1736571085679,7.21509217,186.0,185.93,7.21509217]
[1736571085874,7.21509217,185.98,185.93,7.21509217]
[1736571086071,7.21509217,185.98,185.89,8.0901]
[1736571086276,2.6894,185.94,185.9,7.21509217]
[1736571086779,2.6894,185.94,185.88,2.6901]
[1736571086979,2.6894,185.94,185.91,7.21509217]
[1736571087380,2.6896,185.93,185.89,7.21509217]
[1736571089982,2.6898,185.91,185.89,7.21509217]
[1736571091486,2.69,185.9,185.87,7.21509217]
[1736571092088,2.6903,185.88,185.85,7.21509217]
[1736571095483,7.21509217,185.92,185.85,7.21509217]
[1736571095675,7.21509217,185.9,185.85,7.21509217]
[1736571097183,2.6905,185.87,185.85,7.21509217]
[1736571108893,2.6905,185.87,185.83,7.21509217]
[1736571109088,2.6909,185.84,185.78,34.66704629]
[1736571109290,7.21509217,185.86,185.8,7.21509217]
[1736571109592,2.6908,185.85,185.8,7.21509217]
[1736571109790,7.21509217,185.86,185.8,7.21509217]
[1736571111191,2.691,185.84,185.8,7.21509217]
[1736571113307,7.21509217,185.86,185.8,7.21509217]
[1736571113506,2.691,185.83,185.8,7.21509217]
[1736571114710,2.6908,185.85,185.8,7.21509217]
[1736571115005,7.21509217,185.88,185.8,7.21509217]
[1736571115209,2.691,185.83,185.8,7.21509217]
[1736571123419,2.6907,185.86,185.82,7.21509217]
[1736571124111,7.21509217,185.88,185.77,4.8839]
[1736571124112,2.6909,185.84,185.8,9.90649217]
[1736571124306,7.21509217,185.86,185.8,7.21509217]
[1736571124913,2.6911,185.83,185.78,2.6917]
[1736571125103,7.21509217,185.86,185.79,7.21509217]
[1736571126209,2.6912,185.82,185.79,7.21509217]
[1736571127513,7.21509217,185.86,185.79,7.21509217]
[1736571127713,2.691,185.83,185.81,7.21509217]
[1736571128606,2.691,185.84,185.81,7.21509217]
[1736571128807,7.21509217,185.84,185.77,4.8839]
[1736571129014,7.21509217,185.84,185.77,12.09899217]
[1736571129715,2.6914,185.81,185.77,12.09899217]
[1736571130417,2.6917,185.78,185.75,7.21509217]
[1736571142121,2.6917,185.78,185.73,2.6924]
[1736571142321,2.6917,185.78,185.74,7.21509217]
[1736571143022,7.21509217,185.82,185.74,7.21509217]
[1736571143224,2.6919,185.77,185.74,7.21509217]
[1736571145926,2.692,185.76,185.74,7.21509217]
[1736571146122,7.21509217,185.8,185.72,12.63509217]
[1736571146428,7.21509217,185.78,185.72,12.63509217]
[1736571146725,7.21509217,185.78,185.72,7.21509217]
[1736571147127,2.6923,185.74,185.72,7.21509217]
[1736571147819,2.6928,185.71,185.66,7.21509217]
[1736571148019,7.21509217,185.74,185.66,7.21509217]
[1736571148528,2.6929,185.7,185.66,7.21509217]
[1736571151128,2.6931,185.69,185.66,7.21509217]
[1736571154222,2.6931,185.69,185.64,2.6937]
[1736571154427,2.6931,185.69,185.65,7.21509217]
[1736571155929,2.6931,185.69,185.67,7.21509217]
[1736571156431,17.7089,185.81,185.67,7.21509217]
[1736571156633,7.21509217,185.77,185.71,7.21509217]
[1736571157631,2.6924,185.74,185.71,7.21509217]
[1736571159730,2.6921,185.76,185.73,7.21509217]
[1736571159928,7.21509217,185.79,185.73,7.21509217]
[1736571161344,2.692,185.77,185.73,7.21509217]
[1736571162831,7.21509217,185.79,185.73,7.21509217]
[1736571163029,7.21509217,185.79,185.73,9.90749217]
[1736571164228,2.6919,185.77,185.73,9.90749217]
[1736571167637,2.6919,185.77,185.73,7.21509217]
[1736571169330,9.90699217,185.77,185.72,2.6926]
[1736571174929,2.6919,185.77,185.72,2.6926]
[1736571180341,7.21509217,185.77,185.7,9.90779217]
[1736571180539,7.21509217,185.75,185.69,4.8392]
[1736571180840,2.6926,185.72,185.68,7.21509217]
[1736571181138,7.21509217,185.73,185.66,12.63509217]
[1736571181344,16.15,185.8,185.66,12.63509217]
[1736571181538,2.6926,185.72,185.66,15.32849217]
[1736571183234,2.6926,185.72,185.67,2.6933]
[1736571185441,2.6927,185.71,185.67,2.6933]
[1736571185635,16.15,185.78,185.64,8.75209217]
[1736571185636,7.21509217,185.72,185.64,8.75209217]
[1736571185844,7.21509217,185.7,185.63,8.5991]
[1736571186041,7.21509217,185.7,185.63,14.18729217]
[1736571186241,2.6932,185.68,185.63,16.88099217]
[1736571188646,2.693,185.7,185.64,2.6936]
[1736571189751,2.6926,185.72,185.67,9.90829217]
[1736571190045,7.21509217,185.73,185.67,7.21509217]
[1736571191251,9.90769217,185.73,185.68,2.6931]
[1736571192047,7.21509217,185.73,185.67,7.21509217]
[1736571192250,1.5529,185.8,185.69,7.21509217]
[1736571192447,7.21509217,185.76,185.69,7.21509217]
[1736571193056,9.90719217,185.76,185.7,2.6928]
[1736571193348,9.90719217,185.76,185.69,7.21509217]
[1736571193553,9.90719217,185.76,185.7,5.42]
[1736571193754,2.6923,185.74,185.7,5.42]
[1736571195054,9.90709217,185.76,185.7,5.42]
[1736571195444,9.90709217,185.76,185.7,8.1127]
[1736571196049,9.90709217,185.76,185.71,2.6927]
[1736571196249,2.6919,185.77,185.71,7.21509217]
[1736571196448,9.90699217,185.77,185.71,7.21509217]
[1736571196754,9.90699217,185.77,185.72,2.6925]
[1736571197253,2.692,185.76,185.72,2.6925]
[1736571199863,7.21509217,185.77,185.7,5.42]
[1736571200062,2.6922,185.75,185.7,8.1128]
[1736571200257,9.90729217,185.75,185.7,8.1128]
[1736571204167,7.21509217,185.75,185.69,7.21509217]
[1736571204465,7.21509217,185.73,185.67,15.32829217]
[1736571204964,7.21509217,185.73,185.67,9.90829217]
[1736571205165,2.6927,185.72,185.67,9.90829217]
[1736571206662,2.6927,185.72,185.68,2.6931]
[1736571206864,7.21509217,185.75,185.68,2.6931]
[1736571207065,2.6925,185.73,185.68,2.6931]
[1736571208668,9.90709217,185.76,185.69,7.21509217]
[1736571208868,7.21509217,185.76,185.69,7.21509217]
[1736571209068,7.21509217,185.76,185.66,5.42]
[1736571209366,2.6922,185.75,185.7,2.6928]
[1736571209567,2.6922,185.75,185.69,7.21509217]
[1736571210569,7.21509217,185.76,185.66,5.42]
[1736571210570,2.692,185.77,185.72,2.6925]
[1736571210762,7.21509217,185.77,185.71,7.21509217]
[1736571211567,1.5529,185.8,185.71,7.21509217]
[1736571211767,7.21509217,185.78,185.71,7.21509217]
[1736571212067,9.90679217,185.78,185.73,2.6924]
[1736571214773,2.6919,185.77,185.73,2.6924]
[1736571216878,2.6919,185.77,185.72,2.6926]
[1736571217377,9.90749217,185.74,185.68,7.21509217]
[1736571219176,9.90749217,185.74,185.7,2.6929]
[1736571225180,2.6924,185.74,185.7,2.6929]
[1736571225376,7.21509217,185.77,185.7,7.21509217]
[1736571225682,7.21509217,185.77,185.72,7.21509217]
[1736571226077,9.90709217,185.77,185.72,9.90749217]
[1736571226584,7.21509217,185.77,185.72,9.90749217]
[1736571226781,2.692,185.76,185.72,9.90749217]
[1736571228082,7.21509217,185.77,185.7,7.21509217]
[1736571228281,2.6924,185.74,185.69,2.693]
[1736571236184,8.52865071,185.8,185.7,7.21509217]
[1736571236384,9.90699217,185.77,185.72,2.6925]
[1736571236992,9.90699217,185.77,185.72,9.90759217]
[1736571246493,2.692,185.76,185.72,2.6925]
[1736571256006,2.6918,185.78,185.73,2.6924]
[1736571256200,7.21509217,185.79,185.72,7.21509217]
[1736571256802,7.21509217,185.79,185.75,2.6921]
[1736571257099,9.90669217,185.79,185.75,2.6921]
[1736571260600,6.97575071,185.84,185.77,2.6918]
[1736571260799,7.21509217,185.82,185.77,2.6918]
[1736571262200,2.6913,185.81,185.77,2.6918]
[1736571263005,2.6913,185.81,185.76,9.90709217]
[1736571269213,2.6912,185.82,185.77,2.6918]
[1736571270418,2.6912,185.82,185.78,2.6917]
[1736571270610,9.90609217,185.83,185.78,2.6917]
[1736571270916,16.15,185.92,185.8,2.6914]
[1736571271111,9.90569217,185.86,185.8,7.21509217]
[1736571271712,2.6907,185.85,185.81,2.6912]
[1736571273619,2.6907,185.85,185.82,7.21509217]
[1736571274811,11.81709866,185.91,185.82,7.21509217]
[1736571275016,7.21509217,185.89,185.82,9.90619217]
[1736571275717,7.21509217,185.89,185.82,2.6911]
[1736571275920,2.6904,185.87,185.83,7.21509217]
[1736571277519,7.21509217,185.89,185.83,7.21509217]
[1736571277820,2.6903,185.88,185.83,7.21509217]
[1736571279229,2.6903,185.88,185.84,2.6908]
[1736571280023,2.6903,185.88,185.83,9.90609217]
[1736571282927,7.21509217,185.9,185.85,7.21509217]
[1736571283128,2.6901,185.89,185.85,7.21509217]
[1736571284120,7.21509217,185.88,185.81,2.6912]
[1736571284328,7.21509217,185.88,185.81,7.21509217]
[1736571284729,7.21509217,185.86,185.8,5.4]
[1736571285731,2.6909,185.84,185.8,5.4]
[1736571285934,7.21509217,185.86,185.81,7.21509217]
[1736571286723,7.21509217,185.88,185.81,7.21509217]
[1736571287227,2.6907,185.86,185.81,7.21509217]
[1736571288933,2.6907,185.86,185.81,2.6913]
[1736571289124,2.6907,185.86,185.81,9.90639217]
[1736571289728,2.6907,185.86,185.81,2.6913]
[1736571289934,2.6907,185.86,185.82,7.21509217]
[1736571291135,2.6904,185.87,185.82,9.90619217]
[1736571291334,2.6904,185.87,185.82,7.21509217]
[1736571292235,2.6904,185.87,185.83,2.6909]
[1736571293333,2.6904,185.87,185.82,9.90619217]
[1736571293535,2.6904,185.87,185.84,7.21509217]
[1736571296436,7.21509217,185.9,185.84,7.21509217]
[1736571296637,2.6905,185.87,185.84,7.21509217]
[1736571301032,149.23380143,185.96,185.84,7.21509217]
[1736571301237,12.11689217,185.95,185.88,7.21509217]
[1736571301433,4.9018,185.95,185.88,7.21509217]
[1736571301638,2.6898,185.92,185.88,7.21509217]
[1736571302338,7.21509217,185.93,185.86,7.21509217]
[1736571302543,7.21509217,185.91,185.84,7.21509217]
[1736571303342,2.6903,185.88,185.84,7.21509217]
[1736571304045,7.21509217,185.91,185.84,7.21509217]
[1736571304843,2.6904,185.88,185.84,7.21509217]
[1736571305746,7.21509217,185.87,185.7,7.46824155]
[1736571305935,7.21509217,185.87,185.79,7.21509217]
[1736571306344,2.6909,185.84,185.79,9.90659217]
[1736571307543,2.6907,185.85,185.8,2.6914]
[1736571307848,2.6907,185.85,185.81,7.21509217]
[1736571309648,2.691,185.84,185.81,7.21509217]
[1736571309848,7.21509217,185.84,185.71,4.6749]
[1736571310047,7.21509217,185.82,185.75,7.21509217]
[1736571310750,2.6916,185.8,185.75,9.90709217]
[1736571310946,7.21509217,185.82,185.75,7.21509217]
[1736571311548,2.6914,185.8,185.75,7.21509217]
[1736571315754,2.6914,185.8,185.77,7.21509217]
[1736571317355,7.21509217,185.83,185.77,7.21509217]
[1736571317555,2.6916,185.79,185.77,7.21509217]
[1736571318055,2.6914,185.81,185.77,7.21509217]
[1736571318351,7.21509217,185.83,185.77,7.21509217]
[1736571320052,2.6915,185.8,185.77,7.21509217]
[1736571321355,2.6911,185.83,185.78,2.6917]
[1736571321553,7.21509217,185.84,185.77,7.21509217]
[1736571323057,2.6913,185.81,185.77,7.21509217]
[1736571323554,7.21509217,185.84,185.77,7.21509217]
[1736571324058,7.21509217,185.82,185.75,7.21509217]
[1736571324459,7.21509217,185.8,185.71,4.6749]
[1736571324758,7.21509217,185.78,185.71,8.73749217]
[1736571325260,7.21509217,185.78,185.71,7.21509217]
[1736571325459,2.6923,185.75,185.71,7.21509217]
[1736571327554,7.21509217,185.78,185.71,7.21509217]
[1736571327860,2.6923,185.74,185.71,7.21509217]
[1736571333060,2.6923,185.74,185.69,2.693]
[1736571333061,7.21509217,185.75,185.66,4.7241]
[1736571333266,7.21509217,185.73,185.66,20.03249217]
[1736571334067,2.6927,185.71,185.66,20.03249217]
[1736571334463,2.6927,185.71,185.66,12.8174]
[1736571334764,2.6927,185.71,185.67,7.21509217]
[1736571339573,2.6927,185.71,185.66,12.8174]
[1736571339872,2.6927,185.71,185.67,7.21509217]
[1736571344874,2.6927,185.71,185.67,9.90839217]
[1736571352772,2.6926,185.72,185.67,9.90839217]
[1736571360578,7.21509217,185.75,185.67,7.21509217]
[1736571360783,150.83590143,185.8,185.69,7.21509217]
[1736571361087,7.21509217,185.77,185.69,7.21509217]
[1736571361287,2.6921,185.76,185.71,7.21509217]
[1736571362078,2.6921,185.76,185.71,9.90769217]
[1736571363791,9.90699217,185.77,185.72,2.6926]
[1736571371196,6.98351474,185.8,185.73,7.21509217]
[1736571371395,9.67491474,185.8,185.75,9.90719217]
[1736571371791,6.98351474,185.8,185.77,7.21509217]
[1736571371992,151.92490143,185.83,185.78,2.6916]
[1736571372696,2.6911,185.83,185.78,2.6916]
[1736571373994,10.33759217,185.86,185.79,7.21509217]
[1736571374195,2.6908,185.85,185.79,9.90659217]
[1736571376000,2.6908,185.85,185.8,2.6914]
[1736571376603,2.6905,185.87,185.81,9.90619217]
[1736571377797,2.6905,185.87,185.83,7.21509217]
[1736571378099,3.2006,185.91,185.83,7.21509217]
[1736571378303,7.21509217,185.91,185.85,7.21509217]
[1736571378904,9.90499217,185.91,185.86,2.6905]
[1736571381204,2.6899,185.91,185.86,2.6905]
[1736571382404,2.6899,185.91,185.85,9.90579217]
[1736571386901,3.1353,185.96,185.87,7.21509217]
[1736571387101,9.90469217,185.93,185.87,7.21509217]
[1736571387308,7.21509217,185.93,185.87,7.21509217]
[1736571387908,2.6897,185.92,185.87,9.90549217]
[1736571388409,2.6896,185.93,185.88,2.6902]
[1736571388608,7.21509217,185.95,185.87,7.21509217]
[1736571388810,7.21509217,185.95,185.89,7.21509217]
[1736571389208,2.6895,185.94,185.89,7.21509217]
[1736571390406,2.6895,185.93,185.89,7.21509217]
[1736571402617,2.6894,185.94,185.89,9.90519217]
[1736571402813,2.6894,185.94,185.89,15.30519217]
[1736571403413,2.6894,185.94,185.89,8.0901]
[1736571403613,61.83326517,185.98,185.92,7.21509217]
[1736571405217,2.689,185.97,185.92,9.90469217]
[1736571406617,3.1893,186.02,185.92,7.21509217]
[1736571406816,7.21509217,185.99,185.92,7.21509217]
[1736571407519,2.6891,185.96,185.92,9.90479217]
[1736571407719,7.21509217,185.99,185.92,9.90479217]
[1736571408310,7.21509217,185.99,185.92,7.21509217]
[1736571408815,7.21509217,185.97,185.89,5.4]
[1736571409011,7.21509217,185.95,185.89,15.30509217]
[1736571409716,7.21509217,185.95,185.89,5.4]
[1736571410116,7.21509217,185.95,185.87,7.21509217]
[1736571412123,2.6898,185.92,185.87,7.21509217]
[1736571418132,2.6897,185.92,185.87,7.21509217]
[1736571419425,7.21509217,185.94,185.86,5.4]
[1736571419731,7.21509217,185.9,185.85,7.21509217]
[1736571420431,7.21509217,185.9,185.83,5.4]
[1736571420635,2.6903,185.88,185.83,9.90609217]
[1736571421132,2.6904,185.87,185.83,7.21509217]
[1736571421728,7.21509217,185.9,185.83,7.21509217]
[1736571421729,2.6906,185.86,185.83,7.21509217]
[1736571422035,2.6906,185.86,185.82,5.4]
[1736571422336,2.6906,185.86,185.82,12.61509217]
[1736571423232,2.6906,185.86,185.82,7.21509217]
[1736571425638,2.6906,185.86,185.81,2.6913]
[1736571427338,2.6906,185.86,185.81,9.90639217]
[1736571430534,2.6906,185.86,185.81,2.6913]
[1736571431240,2.6906,185.86,185.82,7.21509217]
[1736571432736,9.90569217,185.86,185.81,2.6913]
[1736571446949,2.6906,185.86,185.81,2.6913]
[1736571448747,7.21509217,185.83,185.71,7.21509217]
[1736571449048,7.21509217,185.79,185.72,5.4]
[1736571449737,7.21509217,185.79,185.71,7.21509217]
[1736571449738,7.21509217,185.79,185.74,2.6922]
[1736571449943,7.21509217,185.77,185.74,2.6922]
[1736571450747,7.21509217,185.79,185.74,2.6922]
[1736571451947,8.50256771,185.86,185.73,12.61509217]
[1736571452151,7.21509217,185.81,185.75,7.21509217]
[1736571452651,7.21509217,185.81,185.77,2.6918]
[1736571453044,7.21509217,185.81,185.75,7.21509217]
[1736571453250,9.90619217,185.83,185.78,2.6917]
[1736571459355,2.6909,185.84,185.79,9.90659217]
[1736571460053,2.6913,185.81,185.77,7.21509217]
[1736571460245,7.21509217,185.81,185.69,4.8656]
[1736571460447,7.21509217,185.81,185.73,7.21509217]
[1736571460645,7.21509217,185.81,185.73,12.61509217]
[1736571461156,2.6917,185.78,185.73,8.0923]
[1736571461457,2.6917,185.78,185.73,5.4]
[1736571464554,9.90669217,185.79,185.73,8.0924]
[1736571465353,10.1845139,185.84,185.76,7.21509217]
[1736571465655,14.20150607,185.84,185.77,7.21509217]
[1736571466156,9.90609217,185.84,185.78,2.6916]
[1736571466847,2.691,185.84,185.79,9.90659217]
[1736571467047,7.21509217,185.88,185.81,7.21509217]
[1736571467854,9.90549217,185.88,185.82,2.691]
[1736571468057,7.21509217,185.89,185.83,7.21509217]
[1736571469157,9.90519217,185.89,185.83,9.90599217]
[1736571470055,2.6903,185.88,185.83,2.6909]
[1736571470262,2.6903,185.88,185.83,7.21509217]
[1736571471761,2.6903,185.88,185.83,9.90609217]
[1736571472459,2.6901,185.89,185.84,2.6908]
[1736571474963,7.21509217,185.92,185.85,7.21509217]
[1736571476065,9.90479217,185.92,185.87,2.6904]